bitfinex/quotes_ETHUSD_20250625
["timestamp","ask_amount","ask_price","bid_price","bid_amount"]
[1750872660897,1.923,2423.4,2423.3,4.91080421]
[1750872661094,0.2056,2423.7,2423.3,0.7842]
[1750872661281,1.923,2423.7,2423.3,0.7842]
[1750872661487,1.923,2423.7,2423.4,0.2056]
[1750872661689,1.923,2423.7,2423.4,4.33202723]
[1750872662394,1.923,2423.7,2423.4,0.2056]
[1750872662562,1.923,2423.7,2423.4,4.33193067]
[1750872662967,1.923,2423.7,2423.4,4.33193673]
[1750872664184,1.923,2423.7,2423.4,0.2056]
[1750872664787,6.04900783,2423.7,2423.4,0.2056]
[1750872665294,1.923,2423.7,2423.5,4.12625493]
[1750872665699,17.032,2423.8,2423.3,0.7842]
[1750872665700,1.923,2423.8,2423.3,0.7842]
[1750872666000,11.821,2423.9,2423.7,4.12592317]
[1750872666205,11.821,2423.9,2423.5,4.3317981]
[1750872666395,11.821,2423.9,2423.5,4.33183883]
[1750872666801,11.821,2423.9,2423.6,4.12594771]
[1750872667303,11.821,2423.9,2423.7,5.12994621]
[1750872667510,11.821,2423.9,2423.7,1.0041]
[1750872668076,9.898,2423.9,2423.7,1.0041]
[1750872668277,11.821,2423.9,2423.7,5.1300179]
[1750872668710,11.821,2423.9,2423.8,4.12575294]
[1750872668906,11.821,2423.9,2423.7,1.0041]
[1750872669718,11.92459848,2424.5,2423.7,1.0041]
[1750872669719,2.2582,2424.3,2423.9,4.12557218]
[1750872669882,9.1576,2424.3,2423.9,4.12557218]
[1750872670482,9.1576,2424.3,2423.9,4.12548976]
[1750872670722,8.952,2424.2,2423.8,4.33125677]
[1750872670906,8.952,2424.2,2423.8,4.33134056]
[1750872671639,8.952,2424.2,2423.9,4.12558118]
[1750872671839,0.2056,2424.3,2423.9,0.925559]
[1750872672040,1.923,2424.3,2424.2,4.12495332]
[1750872672203,1.923,2424.4,2424.2,4.12496151]
[1750872672408,1.923,2424.4,2424.3,4.12490203]
[1750872672609,10.3352,2424.7,2424.3,4.12490203]
[1750872672915,10.3352,2424.7,2424.3,4.33050203]
[1750872672916,8.951,2424.6,2424.3,4.33050203]
[1750872673114,8.951,2424.6,2424.3,0.2056]
[1750872673308,4.12460491,2424.5,2424.3,0.2056]
[1750872673509,13.99112853,2424.6,2424.3,0.2056]
[1750872673709,9.86666,2424.6,2423.9,0.8163]
[1750872673911,4.33035982,2424.4,2423.9,5.14736173]
[1750872674311,0.2056,2424.4,2423.9,5.14736173]
[1750872674650,0.2056,2424.4,2424.0,4.12532292]
[1750872676310,4.33038486,2424.4,2423.9,1.53663617]
[1750872676516,11.15202065,2424.3,2423.9,0.2056]
[1750872676832,7.027,2424.3,2424.0,4.12533292]
[1750872677147,7.027,2424.3,2423.9,4.33118039]
[1750872677333,7.027,2424.3,2424.0,4.12533902]
[1750872678348,7.027,2424.3,2424.0,4.12533324]
[1750872679044,7.027,2424.3,2423.9,0.2056]
[1750872679345,11.15200131,2424.3,2423.9,0.2056]
[1750872680031,4.12509281,2424.2,2423.7,4.91182428]
[1750872680237,2.1286,2424.1,2423.7,0.786]
[1750872680438,2.1286,2424.1,2423.8,4.12575294]
[1750872680633,2.1286,2424.1,2423.7,4.91184776]
[1750872681343,2.1286,2424.1,2423.8,4.1257301]
[1750872681544,2.1286,2424.1,2423.7,0.786]
[1750872681759,2.1286,2424.1,2423.8,4.12568573]
[1750872681943,2.1286,2424.1,2423.7,0.786]
[1750872681944,6.25395976,2424.1,2423.7,0.786]
[1750872682355,4.12546253,2424.0,2423.7,0.786]
[1750872682595,2.4638,2424.1,2423.6,0.2056]
[1750872682792,4.12578347,2423.8,2423.4,0.2056]
[1750872682946,7.024,2423.8,2423.4,0.2056]
[1750872683147,4.12651398,2423.4,2423.0,0.2056]
[1750872683374,1.923,2423.3,2423.0,0.2056]
[1750872683852,1.923,2423.3,2423.0,4.33270045]
[1750872684060,1.923,2423.3,2423.2,4.12677451]
[1750872684394,1.923,2423.3,2423.0,0.71953005]
[1750872684693,1.923,2423.3,2423.2,4.12677451]
[1750872684838,0.2056,2423.5,2423.2,4.12677451]
[1750872685272,1.917,2423.4,2423.2,4.12677451]
[1750872686018,1.917,2423.4,2423.2,5.02410253]
[1750872686166,0.2056,2423.5,2423.2,0.89732802]
[1750872686472,1.917,2423.4,2423.2,0.89732802]
[1750872687398,1.917,2423.4,2423.3,4.12660421]
[1750872687566,1.917,2423.4,2423.2,5.16128756]
[1750872687741,4.6667373,2423.7,2423.2,5.16128756]
[1750872687947,1.917,2423.5,2423.2,5.16129158]
[1750872688177,1.917,2423.5,2423.2,0.2056]
[1750872688672,1.917,2423.5,2423.0,4.95315538]
[1750872688876,1.917,2423.5,2423.0,6.06680621]
[1750872688877,2.1226,2423.5,2423.0,6.06680621]
[1750872689187,1.917,2423.4,2423.0,1.93975083]
[1750872689347,1.917,2423.4,2423.1,4.12694482]
[1750872689543,0.3352,2423.7,2423.0,0.8261]
[1750872689796,1.917,2423.7,2423.5,4.12626206]
[1750872690051,9.896,2423.9,2423.5,4.12617031]
[1750872690253,9.896,2423.9,2423.6,0.2056]
[1750872690254,11.813,2423.9,2423.6,0.2056]
[1750872690792,15.93870413,2423.9,2423.6,0.2056]
[1750872690970,4.12580962,2423.8,2423.6,0.2056]
[1750872691769,4.12626994,2423.5,2423.1,0.2056]
[1750872692148,1.917,2423.4,2423.1,0.2056]
[1750872692349,1.917,2423.4,2423.1,4.3325386]
[1750872692882,1.917,2423.4,2423.1,0.2056]
[1750872693064,1.917,2423.4,2423.3,4.12660421]
[1750872693269,4.33153221,2423.7,2423.2,4.33231513]
[1750872693574,1.917,2423.6,2423.2,4.33231513]
[1750872694484,1.917,2423.6,2423.2,0.2056]
[1750872694786,1.917,2423.6,2423.4,1.0124]
[1750872694982,1.917,2423.6,2423.4,5.6526108]
[1750872695147,1.917,2423.7,2423.4,5.6526108]
[1750872695351,0.2056,2423.8,2423.4,5.6526108]
[1750872695552,1.917,2423.7,2423.4,5.6526108]
[1750872695752,1.917,2423.7,2423.5,4.1262029]
[1750872695949,1.917,2423.7,2423.4,5.65266228]
[1750872696385,1.917,2423.7,2423.5,4.69143969]
[1750872696584,1.917,2423.7,2423.6,4.12609341]
[1750872696761,1.917,2423.7,2423.5,4.69144746]
[1750872697176,1.917,2423.7,2423.5,0.56526623]
[1750872697381,6.04299823,2423.7,2423.4,1.0124]
[1750872697567,0.3352,2423.6,2423.4,0.2056]
[1750872697768,1.917,2423.7,2423.4,0.2056]
[1750872698071,4.66660604,2423.8,2423.4,0.2056]
[1750872698383,6.04293843,2423.7,2423.4,0.2056]
[1750872698586,1.917,2423.7,2423.4,0.2056]
[1750872698759,1.917,2423.7,2423.4,4.76523048]
[1750872698959,1.917,2423.7,2423.4,5.59773048]
[1750872700491,1.917,2423.7,2423.5,4.12623064]
[1750872700787,1.917,2423.7,2423.4,5.59765501]
[1750872701398,7.2256,2423.8,2423.4,5.59765501]
[1750872701399,0.2056,2423.8,2423.4,5.59765501]
[1750872701600,1.917,2423.7,2423.4,1.47131294]
[1750872701972,1.917,2423.7,2423.4,5.59774676]
[1750872702906,1.917,2423.7,2423.4,1.47131294]
[1750872703299,6.0429427,2423.7,2423.4,1.47131294]
[1750872703498,6.0429427,2423.7,2423.4,0.2056]
[1750872703697,1.917,2423.7,2423.4,0.2056]
[1750872704288,6.04301343,2423.7,2423.4,0.2056]
[1750872705787,1.917,2423.7,2423.4,0.2056]
[1750872706177,6.04295347,2423.7,2423.4,0.2056]
[1750872706376,1.917,2423.7,2423.4,0.2056]
[1750872706776,1.917,2423.7,2423.4,4.33202406]
[1750872706978,1.917,2423.7,2423.5,4.12624983]
[1750872707729,1.917,2423.7,2423.6,4.1259883]
[1750872708291,1.917,2423.7,2423.5,4.33177386]
[1750872708788,9.896,2423.9,2423.6,4.12609341]
[1750872708992,9.717,2424.5,2424.1,4.12508068]
[1750872709191,2.1226,2424.5,2424.0,4.33087591]
[1750872709396,1.917,2424.4,2424.1,4.1252236]
[1750872709785,1.917,2424.4,2424.2,4.12505413]
[1750872710116,4.45951295,2424.7,2424.3,0.8208]
[1750872710117,1.917,2424.7,2424.3,0.8208]
[1750872710315,1.917,2424.7,2424.5,4.3301438]
[1750872710498,1.917,2424.7,2424.6,4.12439165]
[1750872711222,1.917,2424.7,2424.5,0.2056]
[1750872711419,10.1036,2424.9,2424.5,0.2056]
[1750872711609,8.931,2424.8,2424.6,4.12432469]
[1750872711991,8.931,2424.8,2424.5,0.2056]
[1750872712186,1.917,2424.8,2424.5,4.33007927]
[1750872712393,1.917,2424.8,2424.5,0.2056]
[1750872712588,1.917,2424.8,2424.6,4.12439165]
[1750872713126,1.917,2424.8,2424.5,4.3300696]
[1750872715991,1.917,2424.8,2424.6,4.12437528]
[1750872716408,17.1176,2424.9,2424.6,4.12437528]
[1750872716409,10.1036,2424.9,2424.8,4.12405146]
[1750872717214,9.898,2424.9,2424.6,0.84545147]
[1750872717409,4.12405146,2424.8,2424.5,0.2056]
[1750872717640,10.4388,2424.9,2424.5,0.2056]
[1750872717847,10.1036,2424.9,2424.5,0.2056]
[1750872718049,11.808,2424.9,2424.8,4.89565146]
[1750872718345,1.91,2425.1,2424.9,4.12384758]
[1750872718531,10.2056,2425.3,2425.0,4.12371134]
[1750872718532,0.2056,2425.3,2425.0,4.12371134]
[1750872718736,0.2056,2425.3,2425.0,4.1236045]
[1750872718913,1.91,2425.2,2425.1,4.12354129]
[1750872719240,1.91,2425.3,2425.2,4.12327539]
[1750872719443,0.2056,2425.5,2425.1,4.12346125]
[1750872719647,8.92,2425.4,2425.2,4.12334653]
[1750872719815,2.45194614,2425.5,2425.1,4.12344545]
[1750872720010,2.45194614,2425.5,2425.0,4.32925626]
[1750872720011,8.92,2425.4,2425.0,4.32920511]
[1750872720217,8.919,2425.4,2425.1,4.12352812]
[1750872720422,13.04203156,2425.4,2425.0,0.2056]
[1750872720746,0.2056,2425.1,2424.6,0.2056]
[1750872720939,7.009,2425.0,2424.6,0.2056]
[1750872721246,7.009,2425.0,2424.4,0.2056]
[1750872721247,0.3352,2424.7,2424.4,0.2056]
[1750872721551,7.2146,2424.6,2424.2,4.58039975]
[1750872721761,7.2146,2424.6,2424.3,4.12490203]
[1750872722051,1.91,2424.8,2424.4,4.12467533]
[1750872722217,1.91,2424.8,2424.5,4.33007036]
[1750872722619,1.91,2424.8,2424.5,4.33009267]
[1750872722929,1.91,2425.0,2424.9,4.12388139]
[1750872723126,1.91,2425.0,2424.8,4.95106501]
[1750872723332,1.91,2425.0,2424.8,4.12396501]
[1750872724053,0.2056,2425.2,2424.9,4.12388139]
[1750872724371,8.918,2425.1,2424.7,0.2056]
[1750872724537,1.91,2425.0,2424.7,4.32974152]
[1750872724742,1.91,2425.1,2424.8,4.12403533]
[1750872725166,1.91,2425.1,2424.7,0.2056]
[1750872725456,0.2056,2425.2,2425.0,4.12371134]
[1750872725664,1.91,2425.1,2425.0,4.12371134]
[1750872725960,8.917,2425.3,2425.2,4.12336394]
[1750872726553,1.91,2425.3,2424.9,0.2056]
[1750872726753,1.91,2425.3,2424.9,4.32939626]
[1750872726972,6.03320975,2425.3,2424.9,4.32939626]
[1750872727276,1.91,2425.3,2425.0,4.12370355]
[1750872727460,1.91,2425.3,2424.9,4.32943343]
[1750872727956,0.3352,2425.2,2424.8,4.12402959]
[1750872728282,0.5408,2425.2,2424.8,4.32962959]
[1750872728579,0.5408,2425.2,2424.8,0.2056]
[1750872728886,0.5408,2425.2,2424.9,4.12376065]
[1750872729578,0.5408,2425.2,2425.0,4.12363227]
[1750872729780,14.12270425,2425.6,2425.1,4.95636679]
[1750872729989,0.2056,2425.4,2425.1,0.8329]
[1750872730483,0.2056,2425.4,2425.1,4.95643507]
[1750872730652,0.2056,2425.4,2425.1,0.8329]
[1750872731387,0.2056,2425.4,2425.1,4.95642284]
[1750872731583,0.2056,2425.4,2425.1,0.8329]
[1750872731880,1.91,2425.6,2425.3,0.2056]
[1750872732096,1.91,2425.6,2425.3,4.32878468]
[1750872732273,1.91,2425.6,2425.4,4.12301419]
[1750872732882,10.1006,2425.8,2425.5,4.12281396]
[1750872733890,9.895,2425.8,2425.7,4.12252133]
[1750872735787,9.895,2425.8,2425.5,0.2056]
[1750872735971,10.1006,2425.8,2425.4,5.09731815]
[1750872736290,12.0096,2425.8,2425.6,4.12258616]
[1750872736986,11.804,2425.8,2425.6,4.12258616]
[1750872737658,11.804,2425.8,2425.5,4.32838733]
[1750872737858,11.804,2425.8,2425.5,0.63753694]
[1750872738260,15.92636204,2425.8,2425.5,0.2056]
[1750872738469,11.804,2425.8,2424.9,0.55]
[1750872738675,0.3352,2425.7,2425.4,0.2056]
[1750872738876,1.909,2425.7,2425.4,0.2056]
[1750872739081,9.895,2425.8,2425.5,0.776]
[1750872739367,11.804,2425.8,2425.6,4.32819252]
[1750872739578,9.895,2425.8,2425.7,0.92269971]
[1750872739904,9.895,2425.8,2425.7,4.12252133]
[1750872745977,9.895,2425.8,2425.6,4.328277]
[1750872745978,0.3352,2425.7,2425.6,0.2056]
[1750872746183,4.4577403,2425.7,2425.4,0.2056]
[1750872746387,0.2056,2425.4,2425.2,4.12328472]
[1750872746584,9.1036,2425.4,2425.0,0.2056]
[1750872746827,0.3352,2425.3,2425.0,4.3292089]
[1750872748124,0.3352,2425.3,2424.9,4.12378393]
[1750872748287,0.3352,2425.3,2424.8,4.12402963]
[1750872748288,0.2056,2425.2,2425.0,4.12370295]
[1750872748491,6.995,2425.1,2424.9,4.12378825]
[1750872748916,6.995,2425.1,2424.8,4.32955784]
[1750872749119,6.995,2425.1,2424.9,4.12383203]
[1750872749322,6.995,2425.1,2424.9,4.12375795]
[1750872749700,6.995,2425.1,2425.0,4.12371134]
[1750872750621,6.995,2425.1,2424.5,0.7883]
[1750872750829,0.2056,2424.9,2424.8,4.12405146]
[1750872751016,6.994,2425.1,2425.0,4.12371134]
[1750872751223,8.896,2425.1,2425.0,4.12371134]
[1750872752429,8.896,2425.1,2424.9,4.12383862]
[1750872752760,8.896,2425.1,2424.8,0.61800515]
[1750872752916,9.83968,2425.1,2424.5,4.9127631]
[1750872753125,0.2056,2424.9,2424.7,4.1241057]
[1750872753541,4.12430798,2424.7,2424.1,0.7722]
[1750872753716,4.12430798,2424.7,2424.1,0.2056]
[1750872753717,4.66544967,2424.5,2424.1,0.2056]
[1750872753918,0.2056,2424.4,2424.3,4.124881]
[1750872754112,1.902,2424.5,2424.3,1.05115509]
[1750872754337,1.902,2424.5,2424.4,4.12473189]
[1750872754845,1.902,2424.5,2424.3,5.17600287]
[1750872755045,1.902,2424.4,2424.3,5.17600287]
[1750872756151,1.902,2424.4,2424.2,4.12500436]
[1750872756376,1.902,2424.4,2424.2,4.33060436]
[1750872757047,1.902,2424.4,2424.1,4.12517636]
[1750872757252,1.902,2424.4,2424.0,0.7948]
[1750872757253,2.4428,2424.4,2423.9,0.2056]
[1750872757548,0.2056,2424.2,2423.8,4.12571093]
[1750872757715,4.12564851,2423.9,2423.7,0.2056]
[1750872757920,4.12564851,2423.9,2423.2,0.8232]
[1750872757921,0.3352,2423.7,2423.4,0.2056]
[1750872758119,0.3352,2423.7,2423.1,4.12691505]
[1750872758341,0.2056,2423.6,2423.1,4.33254482]
[1750872758543,4.33169776,2423.6,2423.1,4.33254482]
[1750872758724,0.2056,2423.6,2423.1,0.68711736]
[1750872758940,0.2056,2423.6,2423.1,4.81392779]
[1750872759453,4.33172895,2423.6,2423.1,0.68711736]
[1750872759656,0.2056,2423.6,2423.1,4.81393097]
[1750872759953,4.33172301,2423.6,2423.1,4.81393097]
[1750872760249,0.2056,2423.5,2423.2,4.12667815]
[1750872760550,0.2056,2423.5,2423.1,4.12686281]
[1750872761555,0.2056,2423.5,2423.1,4.12692674]
[1750872761935,0.2056,2423.5,2423.0,0.2056]
[1750872762265,0.2056,2423.5,2423.0,4.33264077]
[1750872762455,0.2056,2423.5,2423.0,1.13152206]
[1750872762764,0.2056,2423.5,2423.0,5.2585491]
[1750872762765,4.33188506,2423.5,2423.0,5.2585491]
[1750872762942,0.2056,2423.5,2423.2,4.12664859]
[1750872763266,0.2056,2423.5,2423.4,4.12643393]
[1750872763464,1.903,2423.5,2423.3,4.12659946]
[1750872763759,1.903,2423.5,2423.4,4.12643393]
[1750872763964,1.903,2423.5,2423.4,4.33203393]
[1750872764741,2.2382,2423.5,2423.4,0.2056]
[1750872765038,4.33218816,2423.4,2422.9,4.33284322]
[1750872765366,4.12657578,2423.4,2422.9,4.3328679]
[1750872765672,2.2382,2423.5,2423.0,4.12711514]
[1750872765673,0.2056,2423.2,2423.0,4.12711514]
[1750872765877,0.2056,2423.2,2422.9,4.33282802]
[1750872765878,0.2056,2423.2,2422.9,4.33284558]
[1750872766246,0.2056,2423.2,2423.0,4.12708448]
[1750872766457,0.3352,2423.1,2422.8,4.12737961]
[1750872766659,1.903,2423.0,2422.8,4.12737961]
[1750872767274,1.903,2423.0,2422.7,4.333196]
[1750872767569,1.903,2423.0,2422.8,4.12743403]
[1750872767871,1.903,2423.0,2422.7,0.2056]
[1750872768372,1.903,2423.0,2422.6,4.34795895]
[1750872768373,3.25928516,2423.0,2422.6,0.2202515]
[1750872768546,4.33288548,2422.9,2422.6,0.2202515]
[1750872769375,3.25928516,2423.0,2422.6,0.2202515]
[1750872769677,0.3352,2422.9,2422.6,0.2202515]
[1750872769852,8.894,2422.8,2422.6,0.2202515]
[1750872770663,4.46255286,2422.9,2422.6,0.2202515]
[1750872770982,8.893,2422.8,2422.6,0.2202515]
[1750872771269,1.903,2422.7,2422.6,4.34798941]
[1750872771476,1.903,2422.7,2422.6,0.2202515]
[1750872771789,1.903,2422.7,2422.6,4.34804808]
[1750872772070,0.5408,2422.9,2422.7,4.12754982]
[1750872772275,1.903,2422.8,2422.7,4.12754982]
[1750872772849,0.5408,2422.9,2422.8,4.12745583]
[1750872773055,2.4438,2422.9,2422.6,4.34796252]
[1750872773480,2.4438,2422.9,2422.6,0.2202515]
[1750872774375,2.4438,2422.9,2422.7,4.12747151]
[1750872774876,2.4438,2422.9,2422.6,4.34795772]
[1750872775449,2.4438,2422.9,2422.6,0.2202515]
[1750872775645,4.1276262,2422.7,2422.6,0.2202515]
[1750872775885,14.4628262,2422.7,2422.6,0.2202515]
[1750872776184,16.5121544,2422.7,2422.6,0.2202515]
[1750872776967,0.3352,2422.5,2421.6,0.2064]
[1750872777192,0.2064,2421.8,2421.6,4.12934337]
[1750872777398,2.1024,2421.8,2421.6,4.12934337]
[1750872777602,2.1024,2421.8,2421.7,4.12933063]
[1750872777772,1.896,2422.0,2421.9,4.12888769]
[1750872778174,1.896,2422.0,2421.8,4.1290758]
[1750872778472,1.896,2422.0,2421.8,4.12916012]
[1750872778690,0.2064,2422.2,2421.7,5.13750501]
[1750872778891,0.2064,2422.2,2422.0,4.12867181]
[1750872779083,1.896,2422.1,2422.0,4.12867181]
[1750872779284,1.896,2422.1,2421.9,4.12890705]
[1750872779802,14.02915709,2422.4,2422.2,4.12847824]
[1750872779803,9.901,2422.4,2422.2,4.12847824]
[1750872780107,1.897,2422.3,2422.0,0.2064]
[1750872780605,0.2064,2422.1,2421.7,0.2064]
[1750872780806,4.12893674,2422.0,2421.7,0.2064]
[1750872781108,4.12893674,2422.0,2421.5,4.93440814]
[1750872781109,4.12929742,2421.8,2421.5,0.2064]
[1750872781273,0.2064,2421.6,2421.2,4.33650648]
[1750872781787,0.3352,2421.5,2421.2,4.33656653]
[1750872782186,7.3252,2421.5,2421.2,0.2064]
[1750872782384,4.13035397,2421.1,2421.0,0.41237113]
[1750872782709,1.897,2421.1,2421.0,0.41237113]
[1750872783678,1.897,2421.1,2420.8,0.2064]
[1750872783874,1.897,2421.1,2421.0,4.13036321]
[1750872784296,10.3352,2421.1,2420.2,0.2202515]
[1750872784473,4.13098192,2420.8,2420.2,4.35205215]
[1750872784672,4.13088814,2420.8,2420.2,4.35202612]
[1750872784889,8.887,2420.7,2420.3,4.1317042]
[1750872785110,8.887,2420.7,2420.2,0.2202515]
[1750872785410,23.35323647,2420.7,2420.2,0.2202515]
[1750872786273,19.2222,2420.7,2420.2,0.2202515]
[1750872786484,10.3352,2420.7,2420.2,0.2202515]
[1750872786783,0.3352,2421.0,2420.6,4.13118114]
[1750872786982,0.3352,2421.0,2420.3,0.8199]
[1750872786983,1.897,2420.9,2420.3,0.8199]
[1750872787185,14.03332255,2421.2,2420.6,4.13118086]
[1750872787389,1.897,2420.8,2420.7,4.13103647]
[1750872787590,1.897,2420.8,2420.6,4.1311202]
[1750872787785,1.897,2420.8,2420.7,4.13103647]
[1750872788012,1.897,2420.8,2420.6,4.13113754]
[1750872788307,1.897,2420.8,2420.5,4.13130369]
[1750872788712,1.897,2420.8,2420.4,4.13146308]
[1750872788916,1.897,2420.8,2420.5,4.1313452]
[1750872789112,1.897,2420.8,2420.3,0.8199]
[1750872789301,1.897,2420.8,2420.4,4.1315255]
[1750872789682,1.897,2420.8,2420.4,4.1315485]
[1750872790414,3.19885435,2420.8,2420.3,0.8199]
[1750872790621,3.19885435,2420.8,2420.4,4.13144611]
[1750872790828,7.3297208,2420.8,2420.3,4.95153203]
[1750872791112,3.19885435,2420.8,2420.6,4.13104878]
[1750872791282,0.3352,2421.6,2420.6,0.55]
[1750872791486,1.898,2421.5,2420.5,0.8159]
[1750872791686,1.898,2421.5,2420.6,0.55]
[1750872791886,1.898,2421.5,2421.4,4.12984224]
[1750872792112,1.898,2421.5,2421.1,0.8324]
[1750872792416,1.898,2421.5,2421.2,4.13016355]
[1750872792713,1.898,2421.5,2421.4,4.12984224]
[1750872792919,4.46452343,2421.8,2421.2,4.13006253]
[1750872793119,1.898,2421.5,2421.2,4.13006253]
[1750872793417,1.898,2421.5,2421.1,4.13024224]
[1750872793587,2.24120083,2421.5,2420.8,4.89380776]
[1750872793783,2.24120083,2421.5,2421.0,4.13043728]
[1750872794014,2.24120083,2421.5,2420.8,0.763]
[1750872794313,0.2064,2421.2,2420.9,4.13057066]
[1750872794903,4.13044835,2421.1,2420.5,0.7832]
[1750872795108,0.2064,2420.8,2420.4,4.33783717]
[1750872795299,0.2064,2420.8,2420.5,4.13137215]
[1750872795998,0.2064,2420.8,2420.4,4.33790547]
[1750872796194,0.2064,2420.8,2420.4,0.2064]
[1750872796601,0.2064,2420.8,2420.5,4.13126251]
[1750872797117,0.2064,2420.8,2420.6,4.13120662]
[1750872797301,0.2064,2420.8,2420.5,4.13130078]
[1750872797497,0.2064,2420.8,2420.6,4.13118042]
[1750872797708,0.2064,2420.8,2420.4,0.2064]
[1750872797913,4.67258149,2420.8,2420.4,0.2064]
[1750872798091,0.5416,2420.8,2420.4,4.33793886]
[1750872798292,0.5416,2420.8,2420.4,0.2064]
[1750872798591,4.67246766,2420.8,2420.4,4.33794211]
[1750872798789,4.67246766,2420.8,2420.2,0.2202515]
[1750872798790,0.46724677,2420.7,2420.2,0.2202515]
[1750872799016,4.33764215,2420.6,2420.2,0.4266515]
[1750872799213,4.13162628,2420.4,2420.2,0.2202515]
[1750872799405,6.23586708,2420.5,2420.2,0.2202515]
[1750872799608,7.31930579,2420.5,2420.2,0.2202515]
[1750872800425,4.13155723,2420.4,2420.2,0.2202515]
[1750872800634,0.2064,2420.3,2420.2,0.2202515]
[1750872801346,6.992,2420.6,2420.3,4.13163593]
[1750872801552,6.992,2420.6,2420.2,4.35214142]
[1750872801553,0.2064,2420.6,2420.4,4.1315485]
[1750872801713,0.2064,2420.6,2420.2,0.2202515]
[1750872801714,1.898,2420.5,2420.3,4.8976579]
[1750872801916,1.898,2420.5,2420.4,4.3378579]
[1750872802313,2.2332,2420.5,2420.2,0.2202515]
[1750872802529,3.66292,2420.5,2420.2,4.35201623]
[1750872802762,2.4396,2420.5,2420.2,0.2202515]
[1750872803439,2.4396,2420.5,2420.2,4.3521097]
[1750872803638,2.4396,2420.5,2420.3,4.13170878]
[1750872803853,1.898,2420.4,2420.2,0.2202515]
[1750872804350,1.898,2420.4,2420.3,4.1317192]
[1750872804708,0.2064,2420.5,2420.3,4.1317192]
[1750872804943,1.898,2420.4,2420.2,0.2202515]
[1750872805336,0.3352,2420.3,2420.2,0.2202515]
[1750872806712,8.89,2420.3,2420.2,0.2202515]
[1750872807557,1.895,2420.3,2420.2,0.2202515]
[1750872807932,6.0267192,2420.3,2420.2,0.2202515]
[1750872809041,0.3352,2420.5,2420.2,0.2202515]
[1750872809230,1.895,2420.4,2420.2,0.2202515]
[1750872809556,1.895,2420.3,2420.2,0.2202515]
[1750872809733,1.895,2420.3,2420.2,4.35214142]
[1750872812155,0.3352,2420.7,2420.2,0.2202515]
[1750872812327,1.895,2420.6,2420.4,4.13144827]
[1750872812528,1.895,2420.6,2420.5,4.13128343]
[1750872812729,1.895,2420.6,2420.3,4.13162206]
[1750872813452,1.895,2420.6,2420.2,0.2202515]
[1750872813662,1.895,2420.6,2420.2,4.35206459]
[1750872813867,1.895,2420.6,2420.3,4.1316994]
[1750872815287,1.895,2420.6,2420.2,4.35205376]
[1750872816472,0.3352,2420.5,2420.2,0.2202515]
[1750872816969,4.13157037,2420.4,2420.2,0.2202515]
[1750872817174,0.3352,2420.5,2420.2,0.2202515]
[1750872817175,4.46666322,2420.5,2420.2,0.2202515]
[1750872817369,4.1315613,2420.4,2420.2,0.2202515]
[1750872817597,0.44667613,2420.3,2420.2,0.2202515]
[1750872817792,0.3352,2420.5,2420.2,0.2202515]
[1750872818142,0.3352,2420.5,2420.2,4.3521008]
[1750872818341,0.2064,2420.4,2420.2,0.2202515]
[1750872818542,0.2064,2420.4,2420.2,4.3520588]
[1750872818765,0.2064,2420.4,2420.2,4.3519834]
[1750872818979,0.2064,2420.4,2420.2,0.2202515]
[1750872819157,0.2064,2420.4,2420.3,4.1317192]
[1750872819352,0.2064,2420.4,2420.2,4.35205384]
[1750872819556,0.2064,2420.4,2420.2,0.2202515]
[1750872819757,0.2064,2420.4,2420.2,4.35212151]
[1750872820076,6.991,2420.5,2420.3,4.1317192]
[1750872820240,8.39100939,2420.5,2420.2,0.2202515]
[1750872820645,1.40000939,2420.5,2420.2,4.35213467]
[1750872820881,1.895,2420.4,2420.3,4.1317192]
[1750872821254,0.2064,2420.5,2420.3,4.1317192]
[1750872821479,1.895,2420.4,2420.2,4.35206754]
[1750872821673,1.895,2420.4,2420.2,0.2202515]
[1750872822495,0.2064,2420.3,2420.2,0.2202515]
[1750872823204,4.3381192,2420.3,2420.2,0.2202515]
[1750872823706,5.37459837,2420.3,2420.2,0.2202515]
[1750872824167,1.24287917,2420.3,2420.2,0.2202515]
[1750872824368,5.37459837,2420.3,2420.2,0.2202515]
[1750872825403,1.24287917,2420.3,2420.2,0.2202515]
[1750872825576,2.1014,2420.3,2420.2,0.2202515]
[1750872826597,6.2331192,2420.3,2420.2,0.2202515]
[1750872827098,2.1014,2420.3,2420.2,0.2202515]
[1750872827874,6.2331192,2420.3,2420.2,0.2202515]
[1750872828997,2.1014,2420.3,2420.2,0.2202515]
[1750872829909,9.0914,2420.3,2420.2,0.2202515]
[1750872830277,13.2231192,2420.3,2420.2,0.2202515]
[1750872830611,9.0914,2420.3,2420.2,0.2202515]
[1750872830806,0.2064,2420.3,2420.2,0.2202515]
[1750872830998,2.1014,2420.3,2420.2,0.2202515]
[1750872834900,6.2331192,2420.3,2420.2,0.2202515]
[1750872835103,6.07348868,2420.3,2420.2,0.2202515]
[1750872835308,6.2331192,2420.3,2420.2,0.2202515]
[1750872835882,4.3381192,2420.3,2420.2,0.2202515]
[1750872836083,6.2331192,2420.3,2420.2,0.2202515]
[1750872836919,6.5683192,2420.3,2420.2,0.2202515]
[1750872837124,16.2331192,2420.3,2420.2,0.2202515]
[1750872837412,4.13334558,2419.4,2419.0,0.7965]
[1750872837617,2.0984,2419.3,2419.0,0.7965]
[1750872838186,0.3352,2419.6,2419.0,0.7965]
[1750872838386,9.0864,2419.5,2419.2,4.13350541]
[1750872838588,1.892,2419.4,2419.2,4.13350541]
[1750872838784,0.2064,2419.5,2419.1,0.2064]
[1750872838994,1.892,2419.5,2418.8,0.7786]
[1750872839235,0.2064,2419.3,2419.1,4.13365674]
[1750872839407,7.3222,2419.7,2418.8,2.06286]
[1750872839408,0.3352,2419.7,2419.3,4.13330971]